Cogmind - Beta 14 @@@ ROGUE MODE // 2024.08.22 @ 20:37:02 Player: Parra Result: Destroyed by as-13724 with Assembled Rifle Performance ------------- Evolutions (1) 500 Regions Visited (5) 1000 Robots Destroyed (39) 195 Value Destroyed (811) 811 Prototype IDs (0) 0 Alien Tech Used (0) 0 Bonus (9) 9 TOTAL SCORE: 2515 Bonus ------- Follower Combat Kills 139 Friendly Fire -130 Cogmind --------- Core Integrity 0/400 Matter 244/300 Energy 99/100 System Corruption 7% Temperature Cool (0) Movement Core (50) Location -9/Exiles Parts ------- > --- POWER (1) -------- (None) > --- PROPULSION (4) --- (None) > --- UTILITY (2) ------ (None) > --- WEAPON (2) ------- (None) > --- INVENTORY (5) ---- Fission Core Large Storage Unit Advanced Visual Processing Unit Particle Gun Shotgun Peak State ------------ > --- POWER ------------ Light Deuterium Engine > --- PROPULSION ------- Aluminum Leg Aluminum Leg Aluminum Leg Aluminum Leg > --- UTILITY ---------- Large Storage Unit Seismic Detector > --- WEAPON ----------- Light EM Pulse Cannon Plasma Cutter > --- INVENTORY -------- Light Ion Engine Improved Ion Engine Aluminum Leg Small Storage Unit Advanced Visual Processing Unit Advanced Visual Processing Unit Hardened Medium Armor Plating Particle Gun Light Assault Rifle Heavy Assault Rifle Shotgun [Rating: 15] Favorites ----------- Power Ion Engine Engine Ion Engine Propulsion Aluminum Leg Leg Aluminum Leg Utility Seismic Detector Device Seismic Detector Storage High-capacity Battery Protection Medium Armor Plating Weapon EM Pulse Gun Energy Gun EM Pulse Gun Energy Cannon Light EM Pulse Cannon Ballistic Gun Heavy Assault Rifle Launcher Mini Grenade Launcher Special Weapon Plasma Cutter Build | -11 -10 -10 -9 -9 -9 ------- Run | Yrd Mat Min Mat Min Exi Slots Evolved 2 | . . . 2 . . Power . | . . . . . . Propulsion 2 | . . . 2 . . Utility . | . . . . . . Weapon . | . . . . . . Parts Attached 48 | 7 3 9 26 2 1 Power 7 | 2 . 3 2 . . Engine 7 | 2 . 3 2 . . Core . | . . . . . . Reactor . | . . . . . . Propulsion 16 | 2 . 3 11 . . Treads . | . . . . . . Leg 16 | 2 . 3 11 . . Wheel . | . . . . . . Hover . | . . . . . . Flight . | . . . . . . Utility 11 | 1 3 1 4 1 1 Device 4 | 1 2 . 1 . . Storage 5 | . 1 1 2 . 1 Processor . | . . . . . . Hackware . | . . . . . . Protection 2 | . . . 1 1 . Artifact . | . . . . . . Weapon 14 | 2 . 2 9 1 . Energy Gun 3 | 1 . 2 . . . Energy Cannon 2 | . . . 2 . . Ballistic Gun 6 | 1 . . 4 1 . Ballistic Cannon . | . . . . . . Launcher 1 | . . . 1 . . Special Weapon 2 | . . . 2 . . Impact Weapon . | . . . . . . Slashing Weapon . | . . . . . . Piercing Weapon . | . . . . . . Special Melee Weapon . | . . . . . . Unidentified Prototypes . | . . . . . . Parts Lost 12 | . . . 8 . 4 Power 1 | . . . 1 . . Propulsion 5 | . . . 4 . 1 Utility 3 | . . . 2 . 1 Weapon 3 | . . . 1 . 2 Highest Loss Streak 6 | . . . 6 . 4 To Critical Strikes . | . . . . . . Average Slot Usage (%) 90 | . 90 100 98 44 43 Engine 10 | . 14 14 10 . . Leg 33 | . 28 28 43 11 10 Device 10 | . 15 14 10 . . Storage 9 | . 3 14 9 . . Protection 2 | . . . 1 11 10 Energy Gun 10 | . 14 25 3 . . Energy Cannon 3 | . . . 7 . . Ballistic Gun 7 | . 14 2 8 11 10 Launcher 1 | . . . . 11 11 Special Weapon 1 | . . . 2 . . Peak Build Rating 15 | 6 7 8 15 6 8 Average Rating 9 | 3 6 7 13 5 6 On Entrance 5 | . 6 7 8 4 6 Naked Turns 5 | . . . . . 5 Heaviest Build 35 | 8 12 15 35 9 29 Greatest Support 40 | 20 20 20 40 10 10 Greatest Overweight (x) 2 | . . . 1 . 2 Average Overweight (x) . | . . . . . . Largest Inventory Capacity 15 | 5 5 5 15 5 15 Average Capacity 8 | 5 5 5 11 5 5 Most Carried 15 | 5 5 5 15 5 5 Average Carried 6 | 2 5 4 8 3 4 Final Capacity 5 | 5 5 5 5 5 5 Final Carried 5 | 5 5 5 5 3 5 Class Distribution -------------------- 54% | Mutant 45% | Scavenger-Mutant Dominant Class ---------------- Mutant | -10/Materials Mutant | -10/Mines Scavenger-Mutant | -9/Materials Mutant | -9/Mines Mutant | -9/Exiles Resources | -11 -10 -10 -9 -9 -9 ----------- Run | Yrd Mat Min Mat Min Exi Matter Collected 790 | 269 16 120 385 . . Remotely . | . . . . . . Salvage Created 1099 | 68 16 297 699 . 19 Parts 82 | 5 3 18 52 . 4 Haulers Intercepted . | . . . . . . Recyclers Shooed . | . . . . . . Parts Field Recycled . | . . . . . . Retrieved Matter . | . . . . . . Parts Self-Destructed . | . . . . . . Prevented . | . . . . . . Kills | -11 -10 -10 -9 -9 -9 ------- Run | Yrd Mat Min Mat Min Exi Combat Hostiles Destroyed 29 | 1 . 5 23 . . Guns 17 | 1 . 4 12 . . Cannons 2 | . . . 2 . . AOE 10 | . . 1 9 . . Classes Destroyed 8 | 2 1 2 2 . 1 Builder 2 | . 1 . 1 . . Tunneler 2 | 2 . . . . . Recycler 2 | . . 2 . . . Watcher 1 | . . . 1 . . Swarmer 13 | . . 3 10 . . Grunt 12 | 1 . 3 8 . . Sentry 5 | . . . 5 . . Zionite 2 | . . . . . 2 Best Kill Streak 6 | 3 1 3 6 . 1 Combat Bots Only 6 | 1 . 2 6 . . Max Kills in Single Turn 5 | 3 1 2 5 . 1 Gunslinging 1 | . . . 1 . . Exploded 4 | . . 1 4 . . Melee . | . . . . . . Uniques/NPCs Destroyed . | . . . . . . Combat | -11 -10 -10 -9 -9 -9 -------- Run | Yrd Mat Min Mat Min Exi Hostile Shots Fired 221 | 5 1 11 169 . 35 Missed 71 | 2 1 6 50 . 12 Damage Taken 1936 | 33 . 79 1333 . 491 Core 431 | . . 23 180 . 228 Absorbed by Shields . | . . . . . . Core Remaining (%) 95 | 100 . 90 . . . Volleys Fired 81 | 3 1 16 59 . 2 Largest 2 | 2 2 2 2 . 2 Hottest 105 | 60 60 105 105 . 50 Shots Fired 144 | 6 2 27 105 . 4 Gun 110 | 6 2 27 74 . 1 Cannon 21 | . . . 21 . . Launcher 6 | . . . 3 . 3 Special 7 | . . . 7 . . Kinetic 49 | 3 1 1 43 . 1 Thermal 48 | . . 10 38 . . Explosive 6 | . . . 3 . 3 Electromagnetic 41 | 3 1 16 21 . . Robot Hit Streak 11 | 3 . 5 11 . 3 Robot Miss Streak 10 | 3 2 2 10 . . Penetration Max . | . . . . . . Secondary Targets 4 | . . 1 3 . . Max Gunslinging Chain 1 | . . 1 1 . . Shots Hit Robots 70 | 3 . 16 50 . 1 Core Hits 51 | 3 1 10 33 . 4 Critical Kills 1 | . . . 1 . . Critical Parts Destroyed . | . . . . . . Critical Strikes 3 | . . . 3 . . Burn 2 | . . . 2 . . Destroy 1 | . . . 1 . . Melee Attacks . | . . . . . . Impact . | . . . . . . Slashing . | . . . . . . Piercing . | . . . . . . Sneak Attacks . | . . . . . . Combat Hostiles . | . . . . . . Follow-up Attacks . | . . . . . . Damage Inflicted 2110 | 138 13 394 1484 . 81 Guns 1011 | 55 13 273 670 . . Cannons 196 | . . . 196 . . Explosions 856 | 83 . 121 571 . 81 Melee . | . . . . . . Ramming 12 | . . . 12 . . Kinetic 465 | 40 . 15 410 . . Thermal 743 | 83 . 244 416 . . Explosive 524 | . . . 443 . 81 Electromagnetic 366 | 15 13 135 203 . . Impact . | . . . . . . Slashing . | . . . . . . Piercing . | . . . . . . Highest Corruption 7 | . . . 3 3 7 Average Corruption 2 | . . . 2 3 3 Corruption Purged . | . . . . . . Corruption Blocked . | . . . . . . Effects 24 | . . . 20 . 4 Message Errors 8 | . . . 8 . . Matter Fused 3 | . . . 2 . 1 Heat Flow Errors 2 | . . . 2 . . Energy Discharges 3 | . . . 2 . 1 Data Loss (minor) 4 | . . . 3 . 1 Data Loss (major) 3 | . . . 3 . . Misfires 1 | . . . . . 1 Overload Shots . | . . . . . . Overflow Damage 47 | 12 . . 14 . 21 Projectiles 1 | . . . 1 . . Explosions 46 | 12 . . 13 . 21 Melee . | . . . . . . Knockbacks . | . . . . . . Impact . | . . . . . . Kinetic . | . . . . . . Secondary . | . . . . . . Self-Inflicted Damage 139 | . . 31 45 . 63 Shots 6 | . . 2 2 . 2 Rammed . | . . . . . . Targets Rammed 4 | . . . 4 . . Kicked 4 | . . . 4 . . Crushed . | . . . . . . Highest Temperature 282 | 6 . 180 282 . . Average Temperature 69 | 6 . 54 73 . . Received Heat Transfer 429 | 18 . 12 399 . . Siege Activations . | . . . . . . Robots Corrupted . | . . . . . . Combat Hostiles . | . . . . . . Parts Fried 2 | . . 1 1 . . Impact Corruptions . | . . . . . . Robots Melted . | . . . . . . Combat Hostiles . | . . . . . . Parts Melted 1 | . . . 1 . . Heat Transferred 1547 | 100 . 446 1001 . . Parts Sabotaged . | . . . . . . Parts Stolen . | . . . . . . Parts Stripped . | . . . . . . Power Chain Reactions 4 | 1 . 2 1 . . Alert | -11 -10 -10 -9 -9 -9 ------- Run | Yrd Mat Min Mat Min Exi Peak Influence 371 | 30 28 290 371 115 . Initial 115 | . 19 10 71 115 . Average 160 | 5 24 103 220 115 . Maximum Alert Level 1 | . . 1 1 . . Low Security (%) 58 | 100 100 91 30 100 . Level 1 41 | . . 8 69 . . Level 2 . | . . . . . . Level 3 . | . . . . . . Level 4 . | . . . . . . Level 5 . | . . . . . . High Security . | . . . . . . Max Security . | . . . . . . Squads Dispatched 3 | . . . 3 . . Investigation 2 | . . . 2 . . Extermination . | . . . . . . Reinforcement 1 | . . . 1 . . Assault . | . . . . . . Garrison . | . . . . . . Intercept . | . . . . . . Searches Triggered . | . . . . . . Construction Impeded . | . . . . . . Haulers Reinforced . | . . . . . . Active Scanning Responses . | . . . . . . Cargo Convoy Interrupts . | . . . . . . Stealth | -11 -10 -10 -9 -9 -9 --------- Run | Yrd Mat Min Mat Min Exi Distress Signals 3 | . . . 3 . . Communications Jammed . | . . . . . . Distress Signals . | . . . . . . Times Spotted 64 | 1 3 16 31 . 13 Peak Tracking Total 16 | 1 3 5 8 . 16 Tactical Retreats 7 | . . 4 1 . 2 Traps | -11 -10 -10 -9 -9 -9 ------- Run | Yrd Mat Min Mat Min Exi Traps Triggered 2 | . . . 2 . . Indirectly . | . . . . . . Trap Hack Attempts . | . . . . . . Triggered . | . . . . . . Disarmed . | . . . . . . Reprogrammed . | . . . . . . Reused 1 | . . . 1 . . Traps Extracted . | . . . . . . Installed 1 | . . . 1 . . Triggered 1 | . . . 1 . . Most Traps Carried 1 | . . 1 1 . . Machines | -11 -10 -10 -9 -9 -9 ---------- Run | Yrd Mat Min Mat Min Exi Machines Disabled 7 | . . . 1 . 6 Max in Single Turn 4 | . . . 1 . 4 Machines Repaired . | . . . . . . Machines Dismantled . | . . . . . . Machines Sabotaged . | . . . . . . Overloaded Fab Kills . | . . . . . . Hacking | -11 -10 -10 -9 -9 -9 --------- Run | Yrd Mat Min Mat Min Exi Machines Accessed 5 | . 1 . 4 . . Terminals 3 | . 1 . 2 . . Fabricators . | . . . . . . Repair Stations . | . . . . . . Recycling Units 1 | . . . 1 . . Scanalyzers 1 | . . . 1 . . Garrison Access . | . . . . . . Total Hacks 16 | . 6 . 10 . . Successful 10 | . 4 . 6 . . Failed 6 | . 2 . 4 . . Catastrophic . | . . . . . . Database Lockouts . | . . . . . . Manual 2 | . 2 . . . . Terminals 11 | . 6 . 5 . . Fabricators . | . . . . . . Repair Stations . | . . . . . . Recycling Units 1 | . . . 1 . . Scanalyzers 4 | . . . 4 . . Garrison Access . | . . . . . . Terminal Hacks 8 | . 4 . 4 . . Record 4 | . 3 . 1 . . Alert Level 2 | . 1 . 1 . . Dispatch Records 1 | . . . 1 . . Maintenance Status 1 | . . . 1 . . Fabricator Hacks . | . . . . . . Repair Station Hacks . | . . . . . . Recycling Unit Hacks 1 | . . . 1 . . Report Inventory 1 | . . . 1 . . Scanalyzer 1 | . . . 1 . . Insert Component 1 | . . . 1 . . Garrison Access Hacks . | . . . . . . Unauthorized Hacks . | . . . . . . Terminals . | . . . . . . Fabricators . | . . . . . . Repair Stations . | . . . . . . Recycling Units . | . . . . . . Scanalyzers . | . . . . . . Garrison Access . | . . . . . . Data Cores Recovered . | . . . . . . Used . | . . . . . . Hacking Detections 5 | . 1 . 4 . . Full Trace Events 1 | . . . 1 . . Feedback Events 1 | . . . 1 . . Corruption 1 | . . . 1 . . Feedback Blocked . | . . . . . . Robot Schematics Acquired . | . . . . . . Robots Built . | . . . . . . Authchips . | . . . . . . Time . | . . . . . . Total Robot Build Rating . | . . . . . . Part Schematics Acquired . | . . . . . . Parts Built . | . . . . . . Authchips . | . . . . . . Time . | . . . . . . Total Part Build Rating . | . . . . . . Parts Repaired . | . . . . . . Time . | . . . . . . Parts Recycled . | . . . . . . Recycled Matter . | . . . . . . Retrieved Matter . | . . . . . . Retrieved Components . | . . . . . . Parts Scanalyzed 1 | . . . 1 . . Part Schematics Acquired . | . . . . . . Parts Damaged 1 | . . . 1 . . Bothacking | -11 -10 -10 -9 -9 -9 ------------ Run | Yrd Mat Min Mat Min Exi Used RIF Installer . | . . . . . . Robots Hacked . | . . . . . . Non-combat . | . . . . . . Combat . | . . . . . . Robot Hacks Applied . | . . . . . . Relay Couplers Released . | . . . . . . Fabnet Peak Effective % . | . . . . . . Robots Rewired . | . . . . . . Allies Hacked . | . . . . . . Hacks Repelled . | . . . . . . Allies | -11 -10 -10 -9 -9 -9 -------- Run | Yrd Mat Min Mat Min Exi Total Allies 3 | . . 3 . . . Largest Group 3 | . . 3 1 . . Highest-Rated Group 40 | . . 40 16 . . Highest-Rated Ally 16 | . . 16 16 . . Total Orders . | . . . . . . Ally Attacks 43 | . . 39 4 . . Total Damage 417 | . . 400 17 . . Kills 8 | . . 8 . . . Allies Corrupted . | . . . . . . Allies Melted . | . . . . . . Intel | -11 -10 -10 -9 -9 -9 ------- Run | Yrd Mat Min Mat Min Exi Robot Analysis Total . | . . . . . . Derelict Logs Recovered 1 | . . 1 . . . Drone Launches . | . . . . . . Drone Recoveries . | . . . . . . Exploration | -11 -10 -10 -9 -9 -9 ------------- Run | Yrd Mat Min Mat Min Exi Turns Passed 2685 | 129 85 793 1316 66 296 Spaces Moved 1787 | 97 65 541 790 54 240 Core 41 | 28 . . . . 13 Treads . | . . . . . . Legs 1746 | 69 65 541 790 54 227 Wheels . | . . . . . . Hover . | . . . . . . Flight . | . . . . . . Fastest Speed 50 | 50 120 120 120 120 50 Average Speed 118 | 99 120 120 120 120 119 Slowest Speed 260 | 120 120 120 190 120 260 Overloaded Moves . | . . . . . . Propulsion Burnouts . | . . . . . . Robots Hopped . | . . . . . . Cave-ins Triggered . | . . . . . . Exploration Rate (%) 39 | 5 18 67 60 20 66 Regions Visited 5 Branch Regions 3 Pre-discovered Areas . | . . . . . . Known Exits Taken . | . . . . . . Unknown Exits Taken 5 | 1 1 1 1 1 . Scrap Searched 1 | . . 1 . . . Spaces Dug 9 | . . . . . 9 Terrain Destroyed 59 | . . 8 33 . 18 Melee . | . . . . . . Projectile 1 | . . . 1 . . AOE 58 | . . 8 32 . 18 Terrain Rammed . | . . . . . . Walls Destroyed . | . . . . . . Machines Disabled . | . . . . . . Actions | -11 -10 -10 -9 -9 -9 --------- Run | Yrd Mat Min Mat Min Exi Total 2201 | 123 70 664 1043 55 246 Wait 212 | 5 . 78 129 . . Move 1782 | 96 64 540 789 53 240 Hop . | . . . . . . Pick Up 40 | 11 . 8 19 . 2 Fast Attach 4 | . 2 1 1 . . Attach 15 | 7 . 1 4 2 1 Detach 3 | 1 . 1 . . 1 Swap 29 | . 1 7 21 . . Drop 30 | . 2 12 16 . . Fire 81 | 3 1 16 59 . 2 Melee . | . . . . . . Ram . | . . . . . . Kick 4 | . . . 4 . . Crush . | . . . . . . Escape Stasis . | . . . . . . Rewire . | . . . . . . Trap 1 | . . . 1 . . Miscellaneous . | . . . . . . Route ------- -11/Scrapyard -10/Materials -10/Mines (discovered 2 exits: *Mat x2) -9/Materials -9/Mines -9/Exiles (discovered 1 exit: [*Min]) History --------- Turn | Location | Event 2 | -11/Scrapyard | Met Revision 17 85 | -11/Scrapyard | Discovered new exit (range 8) 130 | -11/Scrapyard | Entered Materials 195 | -10/Materials | Discovered new exit (range 7) 215 | -10/Materials | Entered Mines 219 | -10/Mines | Assisted by bots powering up and referring to "LRC-V3" 229 | -10/Mines | Learned Materials emergency access door positions 268 | -10/Mines | Met a Derelict bent on vengeance 307 | -10/Mines | Build established: Mutant 320 | -10/Mines | Excavation squad dispatched 320 | -10/Mines | A large section of the Mines collapsed 570 | -10/Mines | Excavation squad dispatched 570 | -10/Mines | Discovered new exit (range 9) 670 | -10/Mines | Found a hidden stash of uninstalled traps 734 | -10/Mines | Discovered new exit (range 5) 1008 | -10/Mines | Entered Materials 1008 | -9/Materials | Accompanied by 1 ally 1008 | -9/Materials | Evolved 2 slots: Propulsion x2 1304 | -9/Materials | Build established: Scavenger-Mutant 2278 | -9/Materials | Discovered new exit (range 15) 2324 | -9/Materials | Entered Mines 2354 | -9/Mines | Lost 6 parts (1p3n1u1w) 2384 | -9/Mines | Deemed a non-threat by the Exiles lab entrance 2385 | -9/Mines | Discovered new exit (range 5) 2390 | -9/Mines | Entered Exiles 2413 | -9/Exiles | Discovered new exit (range 14) 2447 | -9/Exiles | Met 8R-AWN 2471 | -9/Exiles | Met EX-HEX 2544 | -9/Exiles | Met EX-DEC 2589 | -9/Exiles | Build established: Mutant 2613 | -9/Exiles | Visited The Gauntlet 2628 | -9/Exiles | Attacked by the Exiles 2662 | -9/Exiles | Core integrity fell below 50% 2680 | -9/Exiles | Core integrity fell below 20% 2686 | -9/Exiles | Destroyed by as-13724 with Assembled Rifle Last Messages --------------- [Achievement: Maybe Next Time I'll Detach My Launcher] EXILES: Hostile robot within lab perimeter. Defensive protocols time, folks! DK-RAY destroyed. Machine disabled. Testing Chamber Shield damaged. System corrupted: Component data lost. Testing Chamber Shield damaged. Testing Apparatus damaged. Machine disabled. AM-PHS destroyed. Lgt. Assault Rifle destroyed. System corrupted by crushing effect (+4). Med. Armor Plating destroyed. Aluminum Leg destroyed. Mni. Grenade Launcher destroyed. Destroyed Mni. Grenade Launcher. Knocked back. as-05205 destroyed. Map ----- +----------------------------------------------------+ | ???????????????????????????????????????#"" | | ???????????????????????????????????????#" | | ???????????????????????????????????????#""" | | ???????????????????????????????????????## | | ????????????????????????????????????????#"" | | ????????????????????????????????????????##""" | | ?????????????????????????????????????????##"""" | | ??????????????????????????????????????????### | | ????????????????????????????????????????????##### | | ????????????????????????????????????????????????## | | ?????????????????????????????????????????????????# | | ?????????????????????????????????????????????????# | | ?????????????????????????????????????????????????# | | ?????????????????#######???????????????####??????# | | ????????????????#"""""""#?????"""""???#""""""????# | | ????????????????#"" ""#???"""""""???#"""""""#??# | | ????????????????#" "#??"""""" "#??#" """"#??# | | ????????????????#"" ""#""#""" """???#"" """#??# | | ?????????????????"" ""#""#"" ""????"" ""???# | | ???????????########"""###""###"""########"""###### | | ???????????#"""" "" """"""" """""""" """""" | | ???????????#" """""" """"""" | | ???????????#""" | | ???????????#"""" a | | ???????????#"" *a | | ???????????#""" a @ "" | | ???????????#"" a """" " """"" " """" | | ???????????####### a% #####"""###""###"""###### | | ????????????????#" a #??"" ""#""#"" ""???? | | ????????????????# ##?""" ""#""#""" ""???# | | ????????????????#" ##" """"""""#" " "???# | | ????????????????#""" #?"""""""????"""""""???? | | ????????????????#""" "###?""""""??????""""""???? | | ????????????????###### ##????????????????????????? | | ?????????????????????###?????????????????????????? | | ?????????????????????????????????????????????????? | | ?????????????????????????????????????????????????? | | ?????????????????????????????????????????????????? | | | | | | | | | | | | | | | | | | | | | | | | | +----------------------------------------------------+ Best States ------------- Heat Dissipation 28 Energy Generation 14 Energy Capacity 500 Matter Stores 300 Matter Capacity 300 Sight Range 16 Terrain Scan Density 10 Armor Coverage 225 Evasion (%) 55 Item Schematics ----------------- None Robot Schematics ------------------ None Fabricated ------------ Nothing Alien Tech Used ----------------- None Achievements -------------- Crack Shot Maybe Next Time I'll Detach My Launcher One Hack Too Far Challenges ------------ None Game ------ Seed AluminumRingMultitool Manual? 0 Play Time 02:33:42 Cumulative 4.3 hours Start 2024.08.20 @ 19:59:41 End 2024.08.22 @ 20:37:02 Sessions 6 Manual Loads 0 Difficulty Rogue Special Mode None Game No. 2 Rogue 2 Adventurer 0 Explorer 0 Win Type - Total 0 Types 0/0/0/0/0/0/0/0/0 Lore% 3 Gallery% 5 Achievement% 8 Wizard Run 0 Options --------- Layout 1 ASCII 0 Keyboard 1 Movement Numpad Keybinds 0 Fullscreen 1 Font 24/Smallcaps Map View 50x35 Zoom Use 0% Tactical HUD 0 Map Filters NONE Filters NONE Steam 1 RUN: e6076089-6ceb-4029-8286-47a47fbe6f41